[Event "Titled Tuesday Blitz August 1 Late 2023"]
[White "Petersson, Kjell"]
[Black "Stachanczyk, Jacek"]
[WhiteFideId "1705148"]
[BlackFideId "1116657"]
[WhiteElo "2216"]
[BlackElo "2392"]
[Result "0-1"]
[Round "9"]
[TimeControl "180+1"]
[Date "2023.08.01"]
[WhiteClock "0:00:10"]
[BlackClock "0:00:28"]
[Board "93"]

1. d4 {[%clk 0:02:59]}  d5 {[%clk 0:02:55]} 2. Bf4 {[%clk 0:03:00]}  Nf6 {[%clk 0:02:53]} 3. e3 {[%clk 0:03:00]}  c5 {[%clk 0:02:53]} 4. c3 {[%clk 0:02:59]}  Nc6 {[%clk 0:02:54]} 5. Nd2 {[%clk 0:02:58]}  cxd4 {[%clk 0:02:53]} 6. exd4 {[%clk 0:02:57]}  Bf5 {[%clk 0:02:54]} 7. Ngf3 {[%clk 0:02:52]}  e6 {[%clk 0:02:50]} 8. Nh4 {[%clk 0:02:51]}  Bg4 {[%clk 0:02:50]} 9. Qb3 {[%clk 0:02:42]}  Qd7 {[%clk 0:02:45]} 10. h3 {[%clk 0:02:33]}  Bh5 {[%clk 0:02:42]} 11. Bd3 {[%clk 0:02:18]}  Be7 {[%clk 0:02:39]} 12. Nhf3 {[%clk 0:02:15]}  Bg6 {[%clk 0:02:21]} 13. Bb5 {[%clk 0:02:08]}  O-O {[%clk 0:02:18]} 14. Ne5 {[%clk 0:02:06]}  Qc8 {[%clk 0:02:18]} 15. O-O {[%clk 0:01:58]}  Nxe5 {[%clk 0:02:15]} 16. Bxe5 {[%clk 0:01:53]}  Nd7 {[%clk 0:02:04]} 17. Bg3 {[%clk 0:01:50]}  a6 {[%clk 0:02:05]} 18. Be2 {[%clk 0:01:46]}  b5 {[%clk 0:01:59]} 19. a3 {[%clk 0:01:44]}  Nb6 {[%clk 0:01:59]} 20. Nf3 {[%clk 0:01:34]}  Nc4 {[%clk 0:01:51]} 21. Ne5 {[%clk 0:01:35]}  Nd2 {[%clk 0:01:47]} 22. Qd1 {[%clk 0:01:31]}  Nxf1 {[%clk 0:01:47]} 23. Qxf1 {[%clk 0:01:31]}  Bf6 {[%clk 0:01:46]} 24. Bd3 {[%clk 0:01:27]}  Bxe5 {[%clk 0:01:45]} 25. Bxe5 {[%clk 0:01:26]}  Bxd3 {[%clk 0:01:44]} 26. Qxd3 {[%clk 0:01:27]}  f6 {[%clk 0:01:42]} 27. Bd6 {[%clk 0:01:25]}  Re8 {[%clk 0:01:42]} 28. Re1 {[%clk 0:01:23]}  Qd7 {[%clk 0:01:37]} 29. Qg3 {[%clk 0:01:16]}  Rac8 {[%clk 0:01:33]} 30. h4 {[%clk 0:01:11]}  Rc6 {[%clk 0:01:33]} 31. Bf4 {[%clk 0:01:10]}  a5 {[%clk 0:01:26]} 32. Bd2 {[%clk 0:01:09]}  Qc7 {[%clk 0:01:16]} 33. Qf3 {[%clk 0:01:06]}  Kh8 {[%clk 0:01:09]} 34. h5 {[%clk 0:01:05]}  Qf7 {[%clk 0:01:04]} 35. h6 {[%clk 0:01:04]}  g6 {[%clk 0:01:03]} 36. Qe2 {[%clk 0:00:51]}  Kg8 {[%clk 0:01:03]} 37. Qxb5 {[%clk 0:00:50]}  Rcc8 {[%clk 0:00:58]} 38. Qxa5 {[%clk 0:00:49]}  e5 {[%clk 0:00:59]} 39. dxe5 {[%clk 0:00:44]}  fxe5 {[%clk 0:00:59]} 40. Be3 {[%clk 0:00:38]}  Rcd8 {[%clk 0:00:58]} 41. Qa4 {[%clk 0:00:36]}  Qd7 {[%clk 0:00:56]} 42. Qb3 {[%clk 0:00:35]}  Kf7 {[%clk 0:00:48]} 43. Qa2 {[%clk 0:00:26]}  Kf6 {[%clk 0:00:47]} 44. Qb1 {[%clk 0:00:24]}  d4 {[%clk 0:00:42]} 45. cxd4 {[%clk 0:00:23]}  exd4 {[%clk 0:00:43]} 46. Bd2 {[%clk 0:00:20]}  Rxe1+ {[%clk 0:00:42]} 47. Qxe1 {[%clk 0:00:21]}  d3 {[%clk 0:00:42]} 48. Qe3 {[%clk 0:00:20]}  Qe6 {[%clk 0:00:39]} 49. Bc3+ {[%clk 0:00:20]}  Kf7 {[%clk 0:00:38]} 50. Qa7+ {[%clk 0:00:19]}  Rd7 {[%clk 0:00:38]} 51. Qc5 {[%clk 0:00:19]}  d2 {[%clk 0:00:36]} 52. Bxd2 {[%clk 0:00:16]}  Rxd2 {[%clk 0:00:36]} 53. Qc7+ {[%clk 0:00:16]}  Rd7 {[%clk 0:00:36]} 54. Qf4+ {[%clk 0:00:17]}  Qf5 {[%clk 0:00:35]} 55. Qc4+ {[%clk 0:00:16]}  Rd5 {[%clk 0:00:34]} 56. Qc7+ {[%clk 0:00:16]}  Qd7 {[%clk 0:00:34]} 57. Qc4 {[%clk 0:00:16]}  g5 {[%clk 0:00:32]} 58. a4 {[%clk 0:00:14]}  Kg6 {[%clk 0:00:33]} 59. Qe4+ {[%clk 0:00:13]}  Kxh6 {[%clk 0:00:32]} 60. b4 {[%clk 0:00:11]}  Rd1+ {[%clk 0:00:32]} 61. Kh2 {[%clk 0:00:11]}  Qd6+ {[%clk 0:00:28]} 62. g3 {[%clk 0:00:12]}  Qd5 {[%clk 0:00:29]} 63. Qe7 {[%clk 0:00:10]}  Qh1# {[%clk 0:00:28]} 0-1


[Site "https://www.chess.com"]

[Event "Titled Tuesday Blitz August 1 Late 2023"]
[White "Uzcategui Rodriguez, Alejandro"]
[Black "Penagalapati, Abhinav"]
[WhiteFideId "3903400"]
[BlackFideId "30938210"]
[WhiteElo "2388"]
[BlackElo "2181"]
[Result "1-0"]
[Round "9"]
[TimeControl "180+1"]
[Date "2023.08.01"]
[WhiteClock "0:00:31"]
[BlackClock "0:00:00"]
[Board "94"]

1. e4 {[%clk 0:03:00]}  c5 {[%clk 0:03:00]} 2. Nf3 {[%clk 0:03:01]}  d6 {[%clk 0:03:00]} 3. d4 {[%clk 0:03:01]}  cxd4 {[%clk 0:03:01]} 4. Nxd4 {[%clk 0:03:02]}  Nf6 {[%clk 0:03:01]} 5. Nc3 {[%clk 0:03:03]}  Nc6 {[%clk 0:03:02]} 6. Bc4 {[%clk 0:02:56]}  e6 {[%clk 0:03:02]} 7. Be3 {[%clk 0:02:55]}  a6 {[%clk 0:02:51]} 8. Qe2 {[%clk 0:02:50]}  Qc7 {[%clk 0:02:49]} 9. O-O-O {[%clk 0:02:47]}  Nxd4 {[%clk 0:02:47]} 10. Bxd4 {[%clk 0:02:45]}  b5 {[%clk 0:02:43]} 11. Bb3 {[%clk 0:02:37]}  Be7 {[%clk 0:02:42]} 12. f3 {[%clk 0:02:19]}  Bb7 {[%clk 0:02:37]} 13. g4 {[%clk 0:02:17]}  Rc8 {[%clk 0:02:25]} 14. h4 {[%clk 0:02:06]}  h6 {[%clk 0:01:55]} 15. g5 {[%clk 0:02:04]}  Nh5 {[%clk 0:01:53]} 16. Qe3 {[%clk 0:01:47]}  Qc6 {[%clk 0:00:52]} 17. gxh6 {[%clk 0:01:35]}  Rxh6 {[%clk 0:00:52]} 18. Bxg7 {[%clk 0:01:30]}  Rh7 {[%clk 0:00:52]} 19. Bd4 {[%clk 0:01:28]}  a5 {[%clk 0:00:50]} 20. a4 {[%clk 0:01:23]}  b4 {[%clk 0:00:48]} 21. Nb5 {[%clk 0:01:23]}  Qd7 {[%clk 0:00:38]} 22. Bb6 {[%clk 0:01:18]}  Rc6 {[%clk 0:00:26]} 23. Bxa5 {[%clk 0:01:14]}  Bf8 {[%clk 0:00:20]} 24. Kb1 {[%clk 0:00:58]}  Bh6 {[%clk 0:00:20]} 25. Qa7 {[%clk 0:00:49]}  Ke7 {[%clk 0:00:08]} 26. Bxb4 {[%clk 0:00:47]}  Bf4 {[%clk 0:00:07]} 27. Nxd6 {[%clk 0:00:37]}  Bxd6 {[%clk 0:00:07]} 28. Bxd6+ {[%clk 0:00:37]}  Rxd6 {[%clk 0:00:04]} 29. Rxd6 {[%clk 0:00:38]}  Qxd6 {[%clk 0:00:04]} 30. Qxb7+ {[%clk 0:00:39]}  Kf6 {[%clk 0:00:00]} 31. Qb5 {[%clk 0:00:31]} 1-0


[Site "https://www.chess.com"]

[Event "Titled Tuesday Blitz August 1 Late 2023"]
[White "Miranda, Rafael"]
[Black "Dominguez Rincon, Miller Duvan"]
[WhiteFideId "130990"]
[BlackFideId "4406583"]
[WhiteElo "2613"]
[BlackElo "2031"]
[Result "1-0"]
[Round "9"]
[TimeControl "180+1"]
[Date "2023.08.01"]
[WhiteClock "0:01:57"]
[BlackClock "0:00:10"]
[Board "99"]

1. e4 {[%clk 0:03:00]}  e5 {[%clk 0:02:59]} 2. Nf3 {[%clk 0:03:01]}  Nc6 {[%clk 0:02:59]} 3. Bb5 {[%clk 0:03:01]}  a6 {[%clk 0:02:58]} 4. Ba4 {[%clk 0:03:01]}  Nf6 {[%clk 0:02:58]} 5. d3 {[%clk 0:03:01]}  d6 {[%clk 0:02:58]} 6. Bxc6+ {[%clk 0:03:01]}  bxc6 {[%clk 0:02:57]} 7. Nbd2 {[%clk 0:03:01]}  g6 {[%clk 0:02:57]} 8. Nc4 {[%clk 0:03:01]}  Bg7 {[%clk 0:02:57]} 9. O-O {[%clk 0:03:02]}  O-O {[%clk 0:02:57]} 10. h3 {[%clk 0:03:02]}  Nd7 {[%clk 0:02:55]} 11. b3 {[%clk 0:03:00]}  Re8 {[%clk 0:02:44]} 12. Na5 {[%clk 0:02:59]}  Nb8 {[%clk 0:02:43]} 13. c4 {[%clk 0:02:56]}  Be6 {[%clk 0:02:40]} 14. Bg5 {[%clk 0:02:55]}  f6 {[%clk 0:02:32]} 15. Be3 {[%clk 0:02:55]}  d5 {[%clk 0:02:29]} 16. cxd5 {[%clk 0:02:52]}  cxd5 {[%clk 0:02:30]} 17. Rc1 {[%clk 0:02:50]}  c5 {[%clk 0:01:47]} 18. Nb7 {[%clk 0:02:47]}  Qe7 {[%clk 0:01:36]} 19. Nxc5 {[%clk 0:02:46]}  d4 {[%clk 0:01:34]} 20. Nxe6 {[%clk 0:02:41]}  dxe3 {[%clk 0:01:26]} 21. Nc7 {[%clk 0:02:37]}  exf2+ {[%clk 0:01:22]} 22. Rxf2 {[%clk 0:02:31]}  Nd7 {[%clk 0:01:22]} 23. Nxa8 {[%clk 0:02:28]}  Rxa8 {[%clk 0:01:20]} 24. d4 {[%clk 0:02:21]}  Bh6 {[%clk 0:01:13]} 25. Rc3 {[%clk 0:02:20]}  exd4 {[%clk 0:01:02]} 26. Qxd4 {[%clk 0:02:19]}  Rd8 {[%clk 0:00:53]} 27. Rd3 {[%clk 0:02:08]}  Bf4 {[%clk 0:00:47]} 28. Rc2 {[%clk 0:02:06]}  Bb8 {[%clk 0:00:10]} 29. Rcd2 {[%clk 0:01:57]} 1-0


[Site "https://www.chess.com"]

[Event "Titled Tuesday Blitz August 1 Late 2023"]
[White "Tqebuchava, Zurab"]
[Black "Rama, Tejas"]
[WhiteFideId "13601113"]
[BlackFideId "30907381"]
[WhiteElo "2270"]
[BlackElo "2411"]
[Result "0-1"]
[Round "9"]
[TimeControl "180+1"]
[Date "2023.08.01"]
[WhiteClock "0:00:00"]
[BlackClock "0:00:03"]
[Board "100"]

1. e4 {[%clk 0:03:00]}  c5 {[%clk 0:02:26]} 2. Nf3 {[%clk 0:02:57]}  d6 {[%clk 0:02:26]} 3. Bb5+ {[%clk 0:02:57]}  Bd7 {[%clk 0:02:26]} 4. Bxd7+ {[%clk 0:02:57]}  Nxd7 {[%clk 0:02:27]} 5. O-O {[%clk 0:02:56]}  Ngf6 {[%clk 0:02:27]} 6. Re1 {[%clk 0:02:55]}  e6 {[%clk 0:02:26]} 7. c3 {[%clk 0:02:51]}  Be7 {[%clk 0:02:25]} 8. d3 {[%clk 0:02:51]}  O-O {[%clk 0:02:22]} 9. Bg5 {[%clk 0:02:51]}  h6 {[%clk 0:02:14]} 10. Bh4 {[%clk 0:02:48]}  Re8 {[%clk 0:01:58]} 11. Nbd2 {[%clk 0:02:46]}  b5 {[%clk 0:01:49]} 12. a4 {[%clk 0:02:44]}  a6 {[%clk 0:01:44]} 13. axb5 {[%clk 0:02:43]}  axb5 {[%clk 0:01:44]} 14. Qb3 {[%clk 0:02:40]}  Qb6 {[%clk 0:01:37]} 15. h3 {[%clk 0:02:27]}  Qb7 {[%clk 0:01:20]} 16. Bg3 {[%clk 0:02:09]}  Reb8 {[%clk 0:01:13]} 17. Rxa8 {[%clk 0:01:58]}  Qxa8 {[%clk 0:01:09]} 18. d4 {[%clk 0:01:53]}  Re8 {[%clk 0:00:52]} 19. e5 {[%clk 0:01:40]}  dxe5 {[%clk 0:00:49]} 20. dxe5 {[%clk 0:01:36]}  Nh5 {[%clk 0:00:42]} 21. Bh2 {[%clk 0:01:15]}  g6 {[%clk 0:00:24]} 22. Qxb5 {[%clk 0:01:08]}  Rd8 {[%clk 0:00:17]} 23. Nc4 {[%clk 0:00:57]}  Ng7 {[%clk 0:00:14]} 24. Qb3 {[%clk 0:00:49]}  Nf5 {[%clk 0:00:13]} 25. Rd1 {[%clk 0:00:44]}  Rb8 {[%clk 0:00:13]} 26. Qc2 {[%clk 0:00:41]}  Nb6 {[%clk 0:00:11]} 27. Nxb6 {[%clk 0:00:38]}  Rxb6 {[%clk 0:00:12]} 28. Qd2 {[%clk 0:00:27]}  Qb7 {[%clk 0:00:09]} 29. Rb1 {[%clk 0:00:17]}  c4 {[%clk 0:00:09]} 30. Bf4 {[%clk 0:00:16]}  Ba3 {[%clk 0:00:09]} 31. Qd8+ {[%clk 0:00:11]}  Kh7 {[%clk 0:00:07]} 32. Rd1 {[%clk 0:00:09]}  Qb8 {[%clk 0:00:03]} 33. Qd7 {[%clk 0:00:08]}  Rb7 {[%clk 0:00:03]} 34. Qa4 {[%clk 0:00:06]}  Bxb2 {[%clk 0:00:04]} 35. Qxc4 {[%clk 0:00:06]}  Bxc3 {[%clk 0:00:04]} 36. Qxc3 {[%clk 0:00:05]}  Rc7 {[%clk 0:00:04]} 37. Qd3 {[%clk 0:00:04]}  g5 {[%clk 0:00:05]} 38. Bg3 {[%clk 0:00:04]}  Kg7 {[%clk 0:00:04]} 39. Qd8 {[%clk 0:00:03]}  Qb7 {[%clk 0:00:03]} 40. Qf6+ {[%clk 0:00:02]}  Kh7 {[%clk 0:00:02]} 41. Rd8 {[%clk 0:00:03]}  Rc8 {[%clk 0:00:03]} 42. Qh8+ {[%clk 0:00:02]}  Kg6 {[%clk 0:00:03]} 43. Qg8+ {[%clk 0:00:00]}  Kh5 {[%clk 0:00:03]} 0-1


[Site "https://www.chess.com"]

[Event "Titled Tuesday Blitz August 1 Late 2023"]
[White "Vila Dupla, Aurelio"]
[Black "Necromon"]
[WhiteFideId "2203383"]
[WhiteElo "2161"]
[BlackElo "2380"]
[Result "1-0"]
[Round "9"]
[TimeControl "180+1"]
[Date "2023.08.01"]
[WhiteClock "0:01:30"]
[BlackClock "0:01:16"]
[Board "101"]

1. Nf3 {[%clk 0:03:00]}  d5 {[%clk 0:02:55]} 2. d4 {[%clk 0:03:00]}  c5 {[%clk 0:02:54]} 3. c4 {[%clk 0:03:00]}  cxd4 {[%clk 0:02:53]} 4. cxd5 {[%clk 0:03:00]}  Qxd5 {[%clk 0:02:52]} 5. Qxd4 {[%clk 0:03:00]}  Qxd4 {[%clk 0:02:49]} 6. Nxd4 {[%clk 0:02:59]}  Nf6 {[%clk 0:02:49]} 7. Nb5 {[%clk 0:02:47]}  Na6 {[%clk 0:02:48]} 8. N1c3 {[%clk 0:02:47]}  Bd7 {[%clk 0:02:46]} 9. e4 {[%clk 0:02:46]}  e5 {[%clk 0:02:45]} 10. Bg5 {[%clk 0:02:45]}  Bb4 {[%clk 0:02:39]} 11. Bxf6 {[%clk 0:02:36]}  gxf6 {[%clk 0:02:38]} 12. O-O-O {[%clk 0:02:31]}  O-O {[%clk 0:02:31]} 13. Rxd7 {[%clk 0:02:27]}  Nc5 {[%clk 0:02:28]} 14. Rd1 {[%clk 0:02:19]}  a6 {[%clk 0:02:22]} 15. Nd6 {[%clk 0:02:16]}  Rfd8 {[%clk 0:02:04]} 16. Be2 {[%clk 0:02:07]}  Bxc3 {[%clk 0:01:52]} 17. bxc3 {[%clk 0:02:06]}  Ne6 {[%clk 0:01:52]} 18. Bc4 {[%clk 0:02:01]}  b5 {[%clk 0:01:45]} 19. Bxe6 {[%clk 0:01:57]}  fxe6 {[%clk 0:01:46]} 20. Kb2 {[%clk 0:01:48]}  Ra7 {[%clk 0:01:42]} 21. Rd2 {[%clk 0:01:43]}  Rg7 {[%clk 0:01:38]} 22. g3 {[%clk 0:01:42]}  Rgd7 {[%clk 0:01:37]} 23. Rhd1 {[%clk 0:01:42]}  f5 {[%clk 0:01:23]} 24. exf5 {[%clk 0:01:36]}  exf5 {[%clk 0:01:22]} 25. Kc2 {[%clk 0:01:36]}  f4 {[%clk 0:01:22]} 26. Ne4 {[%clk 0:01:35]}  Rxd2+ {[%clk 0:01:21]} 27. Rxd2 {[%clk 0:01:35]}  Rf8 {[%clk 0:01:22]} 28. Rd6 {[%clk 0:01:31]}  fxg3 {[%clk 0:01:21]} 29. hxg3 {[%clk 0:01:30]}  a5 {[%clk 0:01:16]} 30. Rd5 {[%clk 0:01:30]} 1-0


[Site "https://www.chess.com"]

[Event "Titled Tuesday Blitz August 1 Late 2023"]
[White "Cardozo Munar, Carlos Eduardo"]
[Black "Shapiro, Daniel"]
[WhiteFideId "4409477"]
[BlackFideId "2001780"]
[WhiteElo "2265"]
[BlackElo "2361"]
[Result "1-0"]
[Round "9"]
[TimeControl "180+1"]
[Date "2023.08.01"]
[WhiteClock "0:00:09"]
[BlackClock "0:00:00"]
[Board "102"]

1. e4 {[%clk 0:02:37]}  c5 {[%clk 0:02:59]} 2. Nf3 {[%clk 0:02:34]}  d6 {[%clk 0:02:57]} 3. Nc3 {[%clk 0:02:35]}  Nc6 {[%clk 0:02:55]} 4. Bc4 {[%clk 0:02:35]}  e6 {[%clk 0:02:51]} 5. O-O {[%clk 0:02:35]}  g5 {[%clk 0:02:48]} 6. h3 {[%clk 0:02:18]}  h5 {[%clk 0:02:47]} 7. Nh2 {[%clk 0:02:18]}  Bg7 {[%clk 0:02:17]} 8. a3 {[%clk 0:02:18]}  Be5 {[%clk 0:02:08]} 9. d3 {[%clk 0:02:16]}  g4 {[%clk 0:01:59]} 10. f4 {[%clk 0:02:12]}  Bd4+ {[%clk 0:01:38]} 11. Kh1 {[%clk 0:02:12]}  gxh3 {[%clk 0:01:28]} 12. gxh3 {[%clk 0:02:13]}  Qh4 {[%clk 0:01:16]} 13. Qf3 {[%clk 0:02:13]}  a6 {[%clk 0:01:03]} 14. Be3 {[%clk 0:02:10]}  Bd7 {[%clk 0:01:00]} 15. Bf2 {[%clk 0:01:58]}  Bxf2 {[%clk 0:00:50]} 16. Rxf2 {[%clk 0:01:54]}  Nd4 {[%clk 0:00:49]} 17. Qe3 {[%clk 0:01:48]}  Ne7 {[%clk 0:00:44]} 18. Rg1 {[%clk 0:01:47]}  O-O-O {[%clk 0:00:42]} 19. b4 {[%clk 0:01:32]}  d5 {[%clk 0:00:42]} 20. Ba2 {[%clk 0:01:27]}  Bc6 {[%clk 0:00:27]} 21. bxc5 {[%clk 0:01:25]}  Ndf5 {[%clk 0:00:11]} 22. Qf3 {[%clk 0:01:11]}  dxe4 {[%clk 0:00:09]} 23. dxe4 {[%clk 0:01:10]}  Rdg8 {[%clk 0:00:08]} 24. Rxg8+ {[%clk 0:00:58]}  Rxg8 {[%clk 0:00:07]} 25. Ne2 {[%clk 0:00:48]}  Ng6 {[%clk 0:00:06]} 26. Nf1 {[%clk 0:00:24]}  Rd8 {[%clk 0:00:06]} 27. Kh2 {[%clk 0:00:20]}  Rd1 {[%clk 0:00:05]} 28. Ne3 {[%clk 0:00:18]}  Rd2 {[%clk 0:00:04]} 29. Nxf5 {[%clk 0:00:18]}  exf5 {[%clk 0:00:04]} 30. Ng3 {[%clk 0:00:18]}  fxe4 {[%clk 0:00:04]} 31. Qg2 {[%clk 0:00:14]}  e3 {[%clk 0:00:03]} 32. Bd5 {[%clk 0:00:11]}  Rxf2 {[%clk 0:00:03]} 33. Bxc6 {[%clk 0:00:11]}  Rxg2+ {[%clk 0:00:03]} 34. Bxg2 {[%clk 0:00:12]}  Qxf4 {[%clk 0:00:00]} 35. h4 {[%clk 0:00:09]} 1-0


[Site "https://www.chess.com"]

[Event "Titled Tuesday Blitz August 1 Late 2023"]
[White "Curtis, John"]
[Black "KorolDimitriy75"]
[WhiteFideId "3200256"]
[WhiteElo "2098"]
[BlackElo "2346"]
[Result "0-1"]
[Round "9"]
[TimeControl "180+1"]
[Date "2023.08.01"]
[WhiteClock "0:01:06"]
[BlackClock "0:00:07"]
[Board "104"]

1. d4 {[%clk 0:02:58]}  Nf6 {[%clk 0:02:59]} 2. Bg5 {[%clk 0:02:55]}  Ne4 {[%clk 0:02:58]} 3. Bf4 {[%clk 0:02:54]}  c5 {[%clk 0:02:58]} 4. Nd2 {[%clk 0:02:53]}  Nxd2 {[%clk 0:02:52]} 5. Qxd2 {[%clk 0:02:53]}  cxd4 {[%clk 0:02:53]} 6. Qxd4 {[%clk 0:02:54]}  Nc6 {[%clk 0:02:50]} 7. Qd2 {[%clk 0:02:53]}  e5 {[%clk 0:02:34]} 8. Bg3 {[%clk 0:02:53]}  d5 {[%clk 0:02:34]} 9. Nf3 {[%clk 0:02:49]}  f6 {[%clk 0:02:33]} 10. e3 {[%clk 0:02:47]}  Be6 {[%clk 0:02:31]} 11. Bb5 {[%clk 0:02:42]}  Be7 {[%clk 0:02:27]} 12. O-O {[%clk 0:02:37]}  O-O {[%clk 0:02:23]} 13. Ba4 {[%clk 0:02:37]}  Qc7 {[%clk 0:02:11]} 14. Bb3 {[%clk 0:02:27]}  Rfd8 {[%clk 0:02:10]} 15. Nd4 {[%clk 0:02:27]}  Bf7 {[%clk 0:01:51]} 16. Nxc6 {[%clk 0:02:25]}  bxc6 {[%clk 0:01:49]} 17. c3 {[%clk 0:02:20]}  Rab8 {[%clk 0:01:29]} 18. Bc2 {[%clk 0:02:20]}  g6 {[%clk 0:01:14]} 19. b3 {[%clk 0:02:19]}  c5 {[%clk 0:01:05]} 20. a3 {[%clk 0:01:59]}  a5 {[%clk 0:00:39]} 21. Rfc1 {[%clk 0:01:57]}  Qb6 {[%clk 0:00:37]} 22. Bd1 {[%clk 0:01:56]}  d4 {[%clk 0:00:33]} 23. cxd4 {[%clk 0:01:56]}  cxd4 {[%clk 0:00:33]} 24. exd4 {[%clk 0:01:30]}  Rxd4 {[%clk 0:00:33]} 25. Qe1 {[%clk 0:01:23]}  Bxb3 {[%clk 0:00:26]} 26. a4 {[%clk 0:01:18]}  Bxd1 {[%clk 0:00:16]} 27. Rxd1 {[%clk 0:01:17]}  Bb4 {[%clk 0:00:14]} 28. Qe2 {[%clk 0:01:13]}  Rbd8 {[%clk 0:00:14]} 29. Rxd4 {[%clk 0:01:10]}  Qxd4 {[%clk 0:00:15]} 30. h4 {[%clk 0:01:08]}  Qxa1+ {[%clk 0:00:14]} 31. Kh2 {[%clk 0:01:07]}  Qd4 {[%clk 0:00:14]} 32. Qa6 {[%clk 0:01:08]}  Qd6 {[%clk 0:00:13]} 33. Qb7 {[%clk 0:01:07]}  Qd7 {[%clk 0:00:12]} 34. Qe4 {[%clk 0:01:07]}  Kg7 {[%clk 0:00:11]} 35. h5 {[%clk 0:01:07]}  Qf5 {[%clk 0:00:11]} 36. h6+ {[%clk 0:01:07]}  Kxh6 {[%clk 0:00:10]} 37. Qb7 {[%clk 0:01:05]}  Qh5+ {[%clk 0:00:07]} 38. Bh4 {[%clk 0:01:06]} 0-1


[Site "https://www.chess.com"]

[Event "Titled Tuesday Blitz August 1 Late 2023"]
[White "Stanisz, Patryk"]
[Black "Rodriguez Santiago, Jaime"]
[WhiteFideId "1123106"]
[BlackFideId "3100898"]
[WhiteElo "2293"]
[BlackElo "2329"]
[Result "1-0"]
[Round "9"]
[TimeControl "180+1"]
[Date "2023.08.01"]
[WhiteClock "0:00:32"]
[BlackClock "0:00:13"]
[Board "105"]

1. d4 {[%clk 0:03:00]}  Nf6 {[%clk 0:02:55]} 2. c4 {[%clk 0:03:01]}  e6 {[%clk 0:02:54]} 3. Nc3 {[%clk 0:03:01]}  Bb4 {[%clk 0:02:52]} 4. e3 {[%clk 0:03:01]}  O-O {[%clk 0:02:50]} 5. Ne2 {[%clk 0:03:00]}  d5 {[%clk 0:02:48]} 6. a3 {[%clk 0:03:00]}  Be7 {[%clk 0:02:44]} 7. cxd5 {[%clk 0:02:59]}  exd5 {[%clk 0:02:44]} 8. g3 {[%clk 0:02:59]}  c6 {[%clk 0:02:43]} 9. Bg2 {[%clk 0:02:59]}  Bg4 {[%clk 0:02:37]} 10. f3 {[%clk 0:02:59]}  Bd7 {[%clk 0:02:33]} 11. O-O {[%clk 0:02:59]}  Na6 {[%clk 0:02:30]} 12. e4 {[%clk 0:02:59]}  dxe4 {[%clk 0:02:25]} 13. fxe4 {[%clk 0:02:57]}  Bg4 {[%clk 0:02:04]} 14. Qb3 {[%clk 0:02:31]}  Qd7 {[%clk 0:01:53]} 15. Be3 {[%clk 0:02:21]}  h6 {[%clk 0:01:29]} 16. e5 {[%clk 0:01:54]}  Nd5 {[%clk 0:01:24]} 17. Nxd5 {[%clk 0:01:50]}  cxd5 {[%clk 0:01:24]} 18. Nc3 {[%clk 0:01:47]}  Nc7 {[%clk 0:01:19]} 19. Nxd5 {[%clk 0:01:42]}  Nxd5 {[%clk 0:01:07]} 20. Qxd5 {[%clk 0:01:41]}  Qxd5 {[%clk 0:01:04]} 21. Bxd5 {[%clk 0:01:42]}  Rab8 {[%clk 0:01:00]} 22. Rac1 {[%clk 0:01:37]}  Bd8 {[%clk 0:00:52]} 23. Kg2 {[%clk 0:01:32]}  Bb6 {[%clk 0:00:50]} 24. h3 {[%clk 0:00:59]}  Bh5 {[%clk 0:00:50]} 25. e6 {[%clk 0:00:44]}  fxe6 {[%clk 0:00:46]} 26. Bxe6+ {[%clk 0:00:45]}  Kh8 {[%clk 0:00:46]} 27. Bf4 {[%clk 0:00:37]}  Rbe8 {[%clk 0:00:45]} 28. d5 {[%clk 0:00:38]}  Bg6 {[%clk 0:00:35]} 29. Bd6 {[%clk 0:00:37]}  Be4+ {[%clk 0:00:34]} 30. Kh2 {[%clk 0:00:37]}  Rxf1 {[%clk 0:00:31]} 31. Rxf1 {[%clk 0:00:38]}  Rd8 {[%clk 0:00:31]} 32. Rf8+ {[%clk 0:00:38]}  Rxf8 {[%clk 0:00:30]} 33. Bxf8 {[%clk 0:00:39]}  Kh7 {[%clk 0:00:21]} 34. d6 {[%clk 0:00:37]}  Bc5 {[%clk 0:00:18]} 35. d7 {[%clk 0:00:35]}  Bb6 {[%clk 0:00:17]} 36. Be7 {[%clk 0:00:35]}  Bg2 {[%clk 0:00:15]} 37. Kxg2 {[%clk 0:00:34]}  Bd8 {[%clk 0:00:16]} 38. Bxd8 {[%clk 0:00:34]}  b6 {[%clk 0:00:16]} 39. Bxb6 {[%clk 0:00:33]}  a5 {[%clk 0:00:13]} 40. d8=Q {[%clk 0:00:32]} 1-0


[Site "https://www.chess.com"]

[Event "Titled Tuesday Blitz August 1 Late 2023"]
[White "Garmendiarov"]
[Black "Cooper, Aaron"]
[BlackFideId "2634945"]
[WhiteElo "2270"]
[BlackElo "2309"]
[Result "0-1"]
[Round "9"]
[TimeControl "180+1"]
[Date "2023.08.01"]
[WhiteClock "0:00:00"]
[BlackClock "0:00:10"]
[Board "108"]

1. e4 {[%clk 0:03:00]}  d5 {[%clk 0:02:58]} 2. exd5 {[%clk 0:03:01]}  Qxd5 {[%clk 0:02:58]} 3. Nc3 {[%clk 0:03:01]}  Qd6 {[%clk 0:02:58]} 4. d4 {[%clk 0:03:02]}  Nf6 {[%clk 0:02:57]} 5. Nf3 {[%clk 0:03:02]}  a6 {[%clk 0:02:57]} 6. Ne5 {[%clk 0:02:58]}  Nc6 {[%clk 0:02:42]} 7. Nc4 {[%clk 0:02:30]}  Qxd4 {[%clk 0:02:39]} 8. Bd3 {[%clk 0:02:21]}  e6 {[%clk 0:02:13]} 9. Be3 {[%clk 0:02:17]}  Qh4 {[%clk 0:02:12]} 10. Qe2 {[%clk 0:02:05]}  b5 {[%clk 0:02:06]} 11. g3 {[%clk 0:01:47]}  Qh3 {[%clk 0:01:48]} 12. Nd2 {[%clk 0:01:43]}  Bb4 {[%clk 0:01:48]} 13. O-O-O {[%clk 0:01:34]}  Bxc3 {[%clk 0:01:46]} 14. bxc3 {[%clk 0:01:35]}  Bb7 {[%clk 0:01:46]} 15. Ne4 {[%clk 0:01:06]}  Nxe4 {[%clk 0:01:27]} 16. Bxe4 {[%clk 0:01:07]}  O-O {[%clk 0:01:19]} 17. Rd7 {[%clk 0:00:55]}  Rac8 {[%clk 0:01:15]} 18. Rhd1 {[%clk 0:00:53]}  e5 {[%clk 0:01:12]} 19. g4 {[%clk 0:00:39]}  Na5 {[%clk 0:01:07]} 20. Bc5 {[%clk 0:00:32]}  Rfe8 {[%clk 0:00:53]} 21. R1d3 {[%clk 0:00:20]}  Qxh2 {[%clk 0:00:48]} 22. Rf3 {[%clk 0:00:19]}  Qg1+ {[%clk 0:00:27]} 23. Rd1 {[%clk 0:00:11]}  Qxg4 {[%clk 0:00:23]} 24. Bxb7 {[%clk 0:00:10]}  Nxb7 {[%clk 0:00:21]} 25. Be3 {[%clk 0:00:09]}  Nd6 {[%clk 0:00:18]} 26. Rd2 {[%clk 0:00:07]}  Qa4 {[%clk 0:00:18]} 27. Rg3 {[%clk 0:00:05]}  Qa3+ {[%clk 0:00:17]} 28. Kd1 {[%clk 0:00:05]}  Qxa2 {[%clk 0:00:15]} 29. Qg4 {[%clk 0:00:05]}  g6 {[%clk 0:00:12]} 30. Qg5 {[%clk 0:00:04]}  Qa1+ {[%clk 0:00:09]} 31. Ke2 {[%clk 0:00:04]}  Qxc3 {[%clk 0:00:09]} 32. Bf4 {[%clk 0:00:01]}  Qc4+ {[%clk 0:00:10]} 33. Ke1 {[%clk 0:00:00]}  exf4+ {[%clk 0:00:10]} 0-1


[Site "https://www.chess.com"]